[Event "*** Titled Tuesday Blitz"]
[Site "Chess.com"]
[Date "2018.06.05"]
[Round "10"]
[White "GianmarcoVaR"]
[Black "Last7Samurai"]
[Result "0-1"]
[WhiteElo "2526"]
[BlackElo "2695"]
[TimeControl "180+2"]
[EndTime "15:26:06 PDT"]
[Termination "Last7Samurai won by checkmate"]

1. d4 {[%clk 0:02:06.8]} 1... d5 {[%clk 0:02:58.7]} 2. Nf3 {[%clk 0:02:07.7]}
2... Nf6 {[%clk 0:02:59.7]} 3. c4 {[%clk 0:02:09.6]} 3... c6 {[%clk 0:03:00.5]}
4. Qb3 {[%clk 0:02:08.7]} 4... e6 {[%clk 0:03:00]} 5. Bg5 {[%clk 0:02:05.6]}
5... Nbd7 {[%clk 0:03:00.4]} 6. Nc3 {[%clk 0:02:02.5]} 6... Be7 {[%clk 0:03:01]}
7. g3 {[%clk 0:02:02.7]} 7... O-O {[%clk 0:03:01.1]} 8. Bg2 {[%clk 0:02:03.4]}
8... b6 {[%clk 0:03:01.3]} 9. O-O {[%clk 0:02:01.2]} 9... Ba6 {[%clk 0:03:01.6]}
10. cxd5 {[%clk 0:01:59.9]} 10... cxd5 {[%clk 0:03:03.5]} 11. Qa4 {[%clk
0:02:00.7]} 11... Bb7 {[%clk 0:03:02.7]} 12. Ne5 {[%clk 0:01:58.3]} 12... Nxe5
{[%clk 0:03:00]} 13. dxe5 {[%clk 0:01:59.3]} 13... Nd7 {[%clk 0:03:01.5]} 14.
Bxe7 {[%clk 0:02:00.3]} 14... Qxe7 {[%clk 0:03:03.4]} 15. Qd4 {[%clk 0:01:58.7]}
15... Rac8 {[%clk 0:03:02.9]} 16. f4 {[%clk 0:01:56.7]} 16... Rc4 {[%clk
0:03:00.6]} 17. Qd2 {[%clk 0:01:56.9]} 17... Rfc8 {[%clk 0:03:00.7]} 18. Rac1
{[%clk 0:01:56.5]} 18... Ba6 {[%clk 0:02:55.9]} 19. Rfd1 {[%clk 0:01:27.8]}
19... h5 {[%clk 0:02:34.8]} 20. e3 {[%clk 0:01:26.8]} 20... h4 {[%clk
0:02:32.5]} 21. Bf1 {[%clk 0:01:27.1]} 21... hxg3 {[%clk 0:02:18.2]} 22. hxg3
{[%clk 0:01:26.8]} 22... b5 {[%clk 0:02:07.3]} 23. Bxc4 {[%clk 0:01:24.4]} 23...
bxc4 {[%clk 0:02:09.2]} 24. Ne4 {[%clk 0:01:23.4]} 24... Rb8 {[%clk 0:02:04.1]}
25. Nd6 {[%clk 0:01:22.2]} 25... f6 {[%clk 0:01:46.2]} 26. Qd4 {[%clk
0:00:37.1]} 26... fxe5 {[%clk 0:01:41.1]} 27. fxe5 {[%clk 0:00:38.1]} 27... Qg5
{[%clk 0:01:26.1]} 28. Qf4 {[%clk 0:00:37]} 28... Qxe5 {[%clk 0:01:24.2]} 29.
Qf7+ {[%clk 0:00:26.4]} 29... Kh7 {[%clk 0:01:19.7]} 30. Kg2 {[%clk 0:00:27.6]}
30... Rxb2+ {[%clk 0:01:15.7]} 31. Kh3 {[%clk 0:00:27.6]} 31... Nf6 {[%clk
0:00:46.1]} 32. Rd4 {[%clk 0:00:18.3]} 32... Nh5 {[%clk 0:00:35.5]} 33. Rg4
{[%clk 0:00:16.4]} 33... c3 {[%clk 0:00:19.4]} 34. Qg6+ {[%clk 0:00:11.7]} 34...
Kg8 {[%clk 0:00:20.8]} 35. Qe8+ {[%clk 0:00:11.7]} 35... Kh7 {[%clk 0:00:21.8]}
36. Nf7 {[%clk 0:00:10]} 36... Rb8 {[%clk 0:00:09.4]} 37. Nxe5 {[%clk 0:00:05]}
37... Rxe8 {[%clk 0:00:10.6]} 38. Rxc3 {[%clk 0:00:05.3]} 38... Bf1+ {[%clk
0:00:10.1]} 39. Kh2 {[%clk 0:00:06]} 39... Nf6 {[%clk 0:00:11.6]} 40. Rf4 {[%clk
0:00:05.5]} 40... Be2 {[%clk 0:00:10.5]} 41. Rc7 {[%clk 0:00:05.7]} 41... Ne4
{[%clk 0:00:08.4]} 42. g4 {[%clk 0:00:04.3]} 42... Rb8 {[%clk 0:00:08.3]} 43. g5
{[%clk 0:00:04.7]} 43... Rb2 {[%clk 0:00:09.3]} 44. g6+ {[%clk 0:00:03.2]} 44...
Kh6 {[%clk 0:00:09.8]} 45. Rh4+ {[%clk 0:00:03.8]} 45... Kg5 {[%clk 0:00:11.2]}
46. Rh3 {[%clk 0:00:03.9]} 46... Bg4+ {[%clk 0:00:11.8]} 47. Kg1 {[%clk
0:00:03.8]} 47... Bxh3 {[%clk 0:00:13.2]} 48. Rxg7 {[%clk 0:00:04.3]} 48... Ng3
{[%clk 0:00:13.7]} 49. Nf3+ {[%clk 0:00:04.6]} 49... Kf6 {[%clk 0:00:13.8]} 50.
Rf7+ {[%clk 0:00:05]} 50... Kxg6 {[%clk 0:00:15.2]} 51. Ne5+ {[%clk 0:00:06.3]}
51... Kh6 {[%clk 0:00:16.3]} 52. Rf3 {[%clk 0:00:06]} 52... Rg2# {[%clk
0:00:16.3]} 0-1

[Event "*** Titled Tuesday Blitz"]
[Site "Chess.com"]
[Date "2018.06.05"]
[Round "10"]
[White "maciek_92"]
[Black "OK97"]
[Result "1-0"]
[WhiteElo "2629"]
[BlackElo "2653"]
[TimeControl "180+2"]
[EndTime "15:26:06 PDT"]
[Termination "maciek_92 won by resignation"]

1. d4 {[%clk 0:03:00.9]} 1... Nf6 {[%clk 0:02:59.5]} 2. c4 {[%clk 0:03:02.3]}
2... e6 {[%clk 0:03:00.7]} 3. Nc3 {[%clk 0:03:03.2]} 3... Bb4 {[%clk 0:03:01.4]}
4. e3 {[%clk 0:03:04.6]} 4... O-O {[%clk 0:03:02.4]} 5. Bd3 {[%clk 0:03:05.9]}
5... c5 {[%clk 0:03:03.6]} 6. a3 {[%clk 0:03:00.4]} 6... Bxc3+ {[%clk
0:03:03.2]} 7. bxc3 {[%clk 0:03:02.3]} 7... d6 {[%clk 0:02:39.4]} 8. e4 {[%clk
0:02:56.9]} 8... e5 {[%clk 0:02:39.7]} 9. Ne2 {[%clk 0:02:56]} 9... Nc6 {[%clk
0:02:33]} 10. O-O {[%clk 0:02:55.9]} 10... Nd7 {[%clk 0:02:02]} 11. Be3 {[%clk
0:02:38.6]} 11... cxd4 {[%clk 0:01:51.4]} 12. cxd4 {[%clk 0:02:40.2]} 12... exd4
{[%clk 0:01:53.3]} 13. Nxd4 {[%clk 0:02:42.1]} 13... Nde5 {[%clk 0:01:53.4]} 14.
Nxc6 {[%clk 0:02:41.4]} 14... bxc6 {[%clk 0:01:52.6]} 15. Be2 {[%clk 0:02:37.8]}
15... Be6 {[%clk 0:01:48.9]} 16. Rc1 {[%clk 0:02:39.1]} 16... f5 {[%clk
0:01:27.4]} 17. exf5 {[%clk 0:02:31.8]} 17... Bxf5 {[%clk 0:01:28.4]} 18. Qd4
{[%clk 0:02:30.9]} 18... Qe7 {[%clk 0:01:18.9]} 19. Rcd1 {[%clk 0:02:28.2]}
19... Rfd8 {[%clk 0:01:19.8]} 20. Rfe1 {[%clk 0:02:15.9]} 20... c5 {[%clk
0:01:16.8]} 21. Qc3 {[%clk 0:02:01.9]} 21... Qf6 {[%clk 0:01:08]} 22. Bc1 {[%clk
0:01:46.3]} 22... Rab8 {[%clk 0:01:06.6]} 23. h3 {[%clk 0:01:40.3]} 23... Be4
{[%clk 0:01:00.2]} 24. Qg3 {[%clk 0:01:27]} 24... h6 {[%clk 0:00:47.4]} 25. f4
{[%clk 0:01:23.5]} 25... Nc6 {[%clk 0:00:40.5]} 26. Bg4 {[%clk 0:01:19.2]} 26...
Bf5 {[%clk 0:00:37.2]} 27. Bf3 {[%clk 0:01:16.1]} 27... Nd4 {[%clk 0:00:36.9]}
28. Bd5+ {[%clk 0:01:10.8]} 28... Kh8 {[%clk 0:00:38.3]} 29. Re3 {[%clk
0:01:00]} 29... Rb3 {[%clk 0:00:26.2]} 30. Rxb3 {[%clk 0:00:52.5]} 30... Ne2+
{[%clk 0:00:26.6]} 31. Kh2 {[%clk 0:00:51.1]} 31... Nxg3 {[%clk 0:00:28.2]} 32.
Rxg3 {[%clk 0:00:52.3]} 32... Re8 {[%clk 0:00:28.3]} 33. Rd2 {[%clk 0:00:51.3]}
33... Rb8 {[%clk 0:00:23.2]} 34. Re2 {[%clk 0:00:51]} 34... Kh7 {[%clk
0:00:20.3]} 35. Bd2 {[%clk 0:00:35.5]} 35... Rb2 {[%clk 0:00:17.8]} 36. Bc3
{[%clk 0:00:19.9]} 36... Qxc3 {[%clk 0:00:17.2]} 37. Rxc3 {[%clk 0:00:21.8]}
37... Rxe2 {[%clk 0:00:18.3]} 38. Kg3 {[%clk 0:00:19.1]} 38... Be4 {[%clk
0:00:06]} 39. Bxe4+ {[%clk 0:00:20.1]} 39... Rxe4 {[%clk 0:00:07.9]} 40. Kf3
{[%clk 0:00:22]} 40... Rd4 {[%clk 0:00:08]} 41. Ke3 {[%clk 0:00:19.7]} 41... Kg6
{[%clk 0:00:08.7]} 42. Rd3 {[%clk 0:00:18.7]} 42... Rxd3+ {[%clk 0:00:07.8]} 43.
Kxd3 {[%clk 0:00:20.6]} 43... Kf5 {[%clk 0:00:08.8]} 44. Ke3 {[%clk 0:00:21.3]}
44... h5 {[%clk 0:00:10.3]} 45. g3 {[%clk 0:00:22.4]} 45... a5 {[%clk
0:00:04.8]} 46. Kf3 {[%clk 0:00:23.1]} 46... a4 {[%clk 0:00:06]} 47. Ke3 {[%clk
0:00:19.5]} 47... g5 {[%clk 0:00:05.2]} 48. fxg5 {[%clk 0:00:20.3]} 48... Kxg5
{[%clk 0:00:07.1]} 49. Ke4 {[%clk 0:00:21.7]} 49... h4 {[%clk 0:00:08.3]} 50.
gxh4+ {[%clk 0:00:20.8]} 50... Kxh4 {[%clk 0:00:08.4]} 51. Kd5 {[%clk
0:00:22.3]} 51... Kxh3 {[%clk 0:00:09.1]} 52. Kxd6 {[%clk 0:00:23.9]} 1-0

[Event "*** Titled Tuesday Blitz"]
[Site "Chess.com"]
[Date "2018.06.05"]
[Round "10"]
[White "Fighterman91"]
[Black "BillieKimbah"]
[Result "1-0"]
[WhiteElo "2636"]
[BlackElo "2787"]
[TimeControl "180+2"]
[EndTime "15:26:10 PDT"]
[Termination "Fighterman91 won by resignation"]

1. e4 {[%clk 0:03:01]} 1... c5 {[%clk 0:03:01.1]} 2. Nf3 {[%clk 0:03:02.1]} 2...
e6 {[%clk 0:03:02.6]} 3. b3 {[%clk 0:03:02.9]} 3... a6 {[%clk 0:02:58]} 4. Bb2
{[%clk 0:03:03.9]} 4... Nc6 {[%clk 0:02:59.3]} 5. d4 {[%clk 0:03:01.5]} 5...
cxd4 {[%clk 0:02:59.1]} 6. Nxd4 {[%clk 0:03:03.4]} 6... Qc7 {[%clk 0:02:46]} 7.
Nxc6 {[%clk 0:03:01.4]} 7... bxc6 {[%clk 0:02:41.6]} 8. Nd2 {[%clk 0:03:02.4]}
8... d5 {[%clk 0:02:42.1]} 9. Bd3 {[%clk 0:03:03.3]} 9... Nf6 {[%clk 0:02:41.2]}
10. Qe2 {[%clk 0:03:00.2]} 10... Be7 {[%clk 0:02:40.9]} 11. O-O {[%clk
0:02:59.5]} 11... O-O {[%clk 0:02:35.2]} 12. c4 {[%clk 0:03:00.9]} 12... a5
{[%clk 0:02:20.8]} 13. Rac1 {[%clk 0:02:50.2]} 13... Qf4 {[%clk 0:02:08.9]} 14.
g3 {[%clk 0:02:18.3]} 14... Qh6 {[%clk 0:02:09.4]} 15. cxd5 {[%clk 0:02:04]}
15... cxd5 {[%clk 0:02:10]} 16. e5 {[%clk 0:02:02.9]} 16... Nd7 {[%clk
0:02:04.9]} 17. Bd4 {[%clk 0:02:04.2]} 17... a4 {[%clk 0:02:02.8]} 18. Bb5
{[%clk 0:02:01.6]} 18... axb3 {[%clk 0:02:02.7]} 19. axb3 {[%clk 0:02:03.2]}
19... Nb8 {[%clk 0:01:18.3]} 20. Nf3 {[%clk 0:01:42.3]} 20... Ba6 {[%clk
0:01:16.8]} 21. Rc7 {[%clk 0:01:38.7]} 21... Bd8 {[%clk 0:01:13.9]} 22. Ra7
{[%clk 0:01:40]} 22... Rxa7 {[%clk 0:00:56]} 23. Bxa7 {[%clk 0:01:41.9]} 23...
Nc6 {[%clk 0:00:57]} 24. Be3 {[%clk 0:01:13.3]} 24... Bxb5 {[%clk 0:00:57.5]}
25. Qxb5 {[%clk 0:01:15.2]} 25... Qh5 {[%clk 0:00:58.3]} 26. Qxc6 {[%clk
0:01:16.9]} 26... Qxf3 {[%clk 0:00:58.9]} 27. Bc5 {[%clk 0:01:18.6]} 27... Qxb3
{[%clk 0:00:48.8]} 28. Qd6 {[%clk 0:01:07.3]} 28... Be7 {[%clk 0:00:35]} 29.
Qxe7 {[%clk 0:01:08.3]} 29... Ra8 {[%clk 0:00:35.5]} 30. Qg5 {[%clk 0:00:58.9]}
30... h6 {[%clk 0:00:36.2]} 31. Qe3 {[%clk 0:00:59.2]} 31... Qc2 {[%clk
0:00:36]} 32. Rc1 {[%clk 0:00:59.6]} 32... Qf5 {[%clk 0:00:37]} 33. Bd4 {[%clk
0:00:48.2]} 33... Ra4 {[%clk 0:00:37.7]} 34. Rd1 {[%clk 0:00:40.7]} 34... Qg4
{[%clk 0:00:37.7]} 35. f3 {[%clk 0:00:32]} 35... Qf5 {[%clk 0:00:38.1]} 36. g4
{[%clk 0:00:28.5]} 36... Qc2 {[%clk 0:00:38.4]} 37. Rc1 {[%clk 0:00:27.5]} 37...
Qg6 {[%clk 0:00:34.7]} 38. Kg2 {[%clk 0:00:20.4]} 38... h5 {[%clk 0:00:35]} 39.
h3 {[%clk 0:00:18]} 39... Ra2+ {[%clk 0:00:31.4]} 40. Kg3 {[%clk 0:00:17.2]}
40... Kh7 {[%clk 0:00:30.9]} 41. Rc7 {[%clk 0:00:13.4]} 41... Kg8 {[%clk
0:00:14.4]} 42. Rc8+ {[%clk 0:00:14.2]} 42... Kh7 {[%clk 0:00:15.4]} 43. Rc3
{[%clk 0:00:15.7]} 43... Kg8 {[%clk 0:00:16]} 44. Qd3 {[%clk 0:00:12.9]} 44...
h4+ {[%clk 0:00:07.9]} 45. Kxh4 {[%clk 0:00:14.3]} 45... Qh6+ {[%clk 0:00:09.1]}
46. Kg3 {[%clk 0:00:16]} 46... g5 {[%clk 0:00:10.8]} 47. Rc2 {[%clk 0:00:13.3]}
47... Ra4 {[%clk 0:00:09.7]} 48. Rc8+ {[%clk 0:00:11.2]} 48... Kg7 {[%clk
0:00:10.7]} 49. Qd2 {[%clk 0:00:11.2]} 49... Qh4+ {[%clk 0:00:07.4]} 50. Kg2
{[%clk 0:00:12.4]} 50... Ra3 {[%clk 0:00:08.6]} 51. Bf2 {[%clk 0:00:12.6]} 51...
Qh6 {[%clk 0:00:09.9]} 52. Be3 {[%clk 0:00:12.8]} 52... Qg6 {[%clk 0:00:10.9]}
53. Bxg5 {[%clk 0:00:12.7]} 53... Qb1 {[%clk 0:00:12.5]} 54. Bf6+ {[%clk
0:00:13.9]} 54... Kh7 {[%clk 0:00:13.6]} 55. Rh8+ {[%clk 0:00:14.2]} 1-0

[Event "*** Titled Tuesday Blitz"]
[Site "Chess.com"]
[Date "2018.06.05"]
[Round "10"]
[White "kuli4ik"]
[Black "Parhamov"]
[Result "0-1"]
[WhiteElo "2714"]
[BlackElo "2841"]
[TimeControl "180+2"]
[EndTime "15:26:14 PDT"]
[Termination "Parhamov won by resignation"]

1. d4 {[%clk 0:03:01.9]} 1... Nf6 {[%clk 0:02:59.4]} 2. Bg5 {[%clk 0:03:02.1]}
2... d5 {[%clk 0:02:57.2]} 3. Bxf6 {[%clk 0:03:01.9]} 3... gxf6 {[%clk
0:02:57.5]} 4. e3 {[%clk 0:03:02.7]} 4... e6 {[%clk 0:02:55.5]} 5. Nf3 {[%clk
0:02:59.4]} 5... c5 {[%clk 0:02:56.5]} 6. c3 {[%clk 0:03:00.3]} 6... Nc6 {[%clk
0:02:57.4]} 7. Nbd2 {[%clk 0:03:00.2]} 7... f5 {[%clk 0:02:54.2]} 8. g3 {[%clk
0:03:01]} 8... Qb6 {[%clk 0:02:54.8]} 9. Qb3 {[%clk 0:02:57.2]} 9... c4 {[%clk
0:02:55.5]} 10. Qc2 {[%clk 0:02:57.4]} 10... Bd7 {[%clk 0:02:53.6]} 11. b3
{[%clk 0:02:58]} 11... cxb3 {[%clk 0:02:53.1]} 12. axb3 {[%clk 0:02:59.9]} 12...
Rc8 {[%clk 0:02:54.2]} 13. Be2 {[%clk 0:02:56]} 13... a6 {[%clk 0:02:51.9]} 14.
O-O {[%clk 0:02:56.2]} 14... Be7 {[%clk 0:02:52.2]} 15. c4 {[%clk 0:02:57.4]}
15... O-O {[%clk 0:02:51.1]} 16. Rfc1 {[%clk 0:02:55.3]} 16... Nb4 {[%clk
0:02:50.1]} 17. Qc3 {[%clk 0:02:53]} 17... a5 {[%clk 0:02:49.5]} 18. Ne5 {[%clk
0:02:47.8]} 18... Be8 {[%clk 0:02:50.4]} 19. Bf3 {[%clk 0:02:38.7]} 19... Qd8
{[%clk 0:02:46.8]} 20. Nd3 {[%clk 0:02:32.2]} 20... b6 {[%clk 0:02:41]} 21. Nf4
{[%clk 0:02:21.2]} 21... Bd6 {[%clk 0:02:39.9]} 22. Ne2 {[%clk 0:02:16.3]} 22...
Bc6 {[%clk 0:02:35]} 23. Rd1 {[%clk 0:02:05.1]} 23... Qe7 {[%clk 0:02:26.1]} 24.
Qb2 {[%clk 0:01:59.1]} 24... dxc4 {[%clk 0:02:19.2]} 25. Bxc6 {[%clk 0:01:57.6]}
25... c3 {[%clk 0:02:20.1]} 26. Nxc3 {[%clk 0:01:55.3]} 26... Rxc6 {[%clk
0:02:20.6]} 27. Nc4 {[%clk 0:01:53.2]} 27... Nd5 {[%clk 0:02:20.4]} 28. Nxd5
{[%clk 0:01:51.5]} 28... exd5 {[%clk 0:02:21.3]} 29. Nxd6 {[%clk 0:01:50.6]}
29... Qxd6 {[%clk 0:02:22.3]} 30. Rac1 {[%clk 0:01:46.8]} 30... Rfc8 {[%clk
0:02:23.1]} 31. Rxc6 {[%clk 0:01:47.5]} 31... Rxc6 {[%clk 0:02:23.3]} 32. Qb1
{[%clk 0:01:46.7]} 32... Qe6 {[%clk 0:02:22.6]} 33. Qd3 {[%clk 0:01:40.5]} 33...
h5 {[%clk 0:02:20.5]} 34. h4 {[%clk 0:01:39.4]} 34... Qe4 {[%clk 0:02:20.6]} 35.
Qb5 {[%clk 0:01:37.2]} 35... Rg6 {[%clk 0:02:14.4]} 36. Kh2 {[%clk 0:01:16.7]}
36... Kg7 {[%clk 0:02:03.4]} 37. Rg1 {[%clk 0:00:58.2]} 37... Qf3 {[%clk
0:01:54.1]} 38. Rf1 {[%clk 0:00:56.3]} 38... Qe4 {[%clk 0:01:52.1]} 39. Rg1
{[%clk 0:00:57.2]} 39... Qc2 {[%clk 0:01:49.3]} 40. Kg2 {[%clk 0:00:55.3]} 40...
f4 {[%clk 0:01:39.6]} 41. exf4 {[%clk 0:00:53.7]} 41... Qe4+ {[%clk 0:01:40.8]}
42. Kh2 {[%clk 0:00:44]} 42... Qxd4 {[%clk 0:01:38.4]} 43. Rf1 {[%clk
0:00:45.1]} 43... Re6 {[%clk 0:01:27.2]} 44. Kg2 {[%clk 0:00:42]} 44... Qe4+
{[%clk 0:01:21.3]} 45. Kg1 {[%clk 0:00:40.1]} 45... Rg6 {[%clk 0:01:21.7]} 46.
Rd1 {[%clk 0:00:37.6]} 46... Rd6 {[%clk 0:01:20.3]} 47. Rd3 {[%clk 0:00:29.6]}
47... d4 {[%clk 0:01:11.6]} 48. Qe5+ {[%clk 0:00:17.3]} 48... Qxe5 {[%clk
0:01:11.3]} 49. fxe5 {[%clk 0:00:19.2]} 49... Rd5 {[%clk 0:01:12.2]} 50. f4
{[%clk 0:00:20.2]} 50... Kg6 {[%clk 0:01:13.5]} 51. Kf2 {[%clk 0:00:21.6]} 51...
Kf5 {[%clk 0:01:14.9]} 52. Kf3 {[%clk 0:00:23]} 52... b5 {[%clk 0:01:16.1]} 53.
Rd1 {[%clk 0:00:23.6]} 53... a4 {[%clk 0:01:13.7]} 54. bxa4 {[%clk 0:00:24.4]}
54... bxa4 {[%clk 0:01:15.6]} 55. Ke2 {[%clk 0:00:19.2]} 55... Ke4 {[%clk
0:01:05.5]} 56. Kd2 {[%clk 0:00:20.4]} 56... Rb5 {[%clk 0:01:02.8]} 57. Re1+
{[%clk 0:00:21.6]} 57... Kd5 {[%clk 0:01:03.5]} 58. Ra1 {[%clk 0:00:21.5]} 58...
Rb2+ {[%clk 0:01:02.5]} 59. Kd3 {[%clk 0:00:22.8]} 59... Rb3+ {[%clk 0:01:01]}
60. Kd2 {[%clk 0:00:23.9]} 60... a3 {[%clk 0:00:57.8]} 61. g4 {[%clk 0:00:18.5]}
61... hxg4 {[%clk 0:00:57.3]} 62. h5 {[%clk 0:00:20.4]} 62... g3 {[%clk
0:00:56.7]} 63. h6 {[%clk 0:00:21.3]} 63... g2 {[%clk 0:00:57.9]} 64. Ke2 {[%clk
0:00:22.5]} 64... a2 {[%clk 0:00:56.5]} 65. Kf2 {[%clk 0:00:23.7]} 65... Rb1
{[%clk 0:00:56.7]} 66. h7 {[%clk 0:00:23.7]} 66... g1=Q+ {[%clk 0:00:56.7]} 0-1

[Event "*** Titled Tuesday Blitz"]
[Site "Chess.com"]
[Date "2018.06.05"]
[Round "10"]
[White "Keaton87"]
[Black "Alexandr_Predke"]
[Result "0-1"]
[WhiteElo "2482"]
[BlackElo "2653"]
[TimeControl "180+2"]
[EndTime "15:26:15 PDT"]
[Termination "Alexandr_Predke won by resignation"]

1. e4 {[%clk 0:03:01.9]} 1... e5 {[%clk 0:02:55.6]} 2. Nf3 {[%clk 0:03:02.9]}
2... Nc6 {[%clk 0:02:53.4]} 3. Bb5 {[%clk 0:03:03.7]} 3... a6 {[%clk 0:02:50.4]}
4. Ba4 {[%clk 0:03:04.8]} 4... Nf6 {[%clk 0:02:43.2]} 5. d4 {[%clk 0:03:04.5]}
5... exd4 {[%clk 0:02:40]} 6. O-O {[%clk 0:03:05.5]} 6... Be7 {[%clk 0:02:38.8]}
7. Re1 {[%clk 0:03:06.7]} 7... O-O {[%clk 0:02:37.6]} 8. e5 {[%clk 0:03:07.6]}
8... Nd5 {[%clk 0:02:38]} 9. Nxd4 {[%clk 0:03:07.6]} 9... Nb6 {[%clk 0:02:38.8]}
10. Bb3 {[%clk 0:03:08]} 10... d5 {[%clk 0:02:13.6]} 11. exd6 {[%clk 0:03:06.9]}
11... Bxd6 {[%clk 0:02:09.6]} 12. Nxc6 {[%clk 0:03:06.7]} 12... bxc6 {[%clk
0:02:11.1]} 13. Nc3 {[%clk 0:03:04.6]} 13... Qh4 {[%clk 0:02:07.2]} 14. g3
{[%clk 0:02:58.7]} 14... Qh3 {[%clk 0:02:05.7]} 15. Qf3 {[%clk 0:02:53.7]} 15...
Bg4 {[%clk 0:02:00.7]} 16. Qg2 {[%clk 0:02:54.5]} 16... Qh5 {[%clk 0:01:56.6]}
17. f4 {[%clk 0:02:21.2]} 17... Rae8 {[%clk 0:01:35.7]} 18. Be3 {[%clk
0:01:16.7]} 18... Nd7 {[%clk 0:01:34.7]} 19. Bf2 {[%clk 0:00:39.8]} 19... Bf3
{[%clk 0:01:24.7]} 20. Qf1 {[%clk 0:00:39.1]} 20... Nf6 {[%clk 0:01:22.6]} 21.
h3 {[%clk 0:00:38.8]} 21... c5 {[%clk 0:00:33.5]} 22. Bc4 {[%clk 0:00:38.7]}
22... Bc6 {[%clk 0:00:22.5]} 23. Be2 {[%clk 0:00:37.1]} 23... Rxe2 {[%clk
0:00:20.5]} 24. Rxe2 {[%clk 0:00:33]} 24... Qf3 {[%clk 0:00:18.8]} 25. Kh2
{[%clk 0:00:26.6]} 25... Qh5 {[%clk 0:00:12.9]} 26. Kg1 {[%clk 0:00:22]} 26...
Qf3 {[%clk 0:00:10.2]} 27. Kh2 {[%clk 0:00:23]} 27... Qh5 {[%clk 0:00:11.1]} 28.
Kg1 {[%clk 0:00:20.2]} 28... Ng4 {[%clk 0:00:11.1]} 29. Rae1 {[%clk 0:00:16.8]}
29... c4 {[%clk 0:00:08.5]} 30. Ne4 {[%clk 0:00:15.8]} 30... Nxf2 {[%clk
0:00:09.4]} 31. Qxf2 {[%clk 0:00:14.3]} 31... Bxe4 {[%clk 0:00:10]} 32. Rxe4
{[%clk 0:00:15.8]} 32... Bc5 {[%clk 0:00:11.5]} 33. R4e3 {[%clk 0:00:16.3]}
33... Qxh3 {[%clk 0:00:11.7]} 34. Qg2 {[%clk 0:00:15]} 34... Qf5 {[%clk
0:00:11.2]} 35. Kf1 {[%clk 0:00:13.9]} 35... Bxe3 {[%clk 0:00:11.4]} 36. Rxe3
{[%clk 0:00:15.8]} 36... Rd8 {[%clk 0:00:11.1]} 37. Qe2 {[%clk 0:00:14.4]} 37...
h5 {[%clk 0:00:08.2]} 38. Re8+ {[%clk 0:00:13.5]} 38... Rxe8 {[%clk 0:00:08.9]}
39. Qxe8+ {[%clk 0:00:15.4]} 39... Kh7 {[%clk 0:00:10.3]} 40. Qe2 {[%clk
0:00:16.4]} 40... Qd5 {[%clk 0:00:09.6]} 41. Kf2 {[%clk 0:00:16.2]} 41... g6
{[%clk 0:00:10.5]} 42. Qe8 {[%clk 0:00:12.1]} 42... Qd4+ {[%clk 0:00:08.8]} 43.
Kf3 {[%clk 0:00:11.2]} 43... Kg7 {[%clk 0:00:10.3]} 44. c3 {[%clk 0:00:07.1]}
44... Qd1+ {[%clk 0:00:09.7]} 45. Kg2 {[%clk 0:00:06.5]} 45... Qc2+ {[%clk
0:00:09.8]} 46. Kf3 {[%clk 0:00:05.8]} 46... Qd3+ {[%clk 0:00:06.3]} 47. Kg2
{[%clk 0:00:06.9]} 47... Qd5+ {[%clk 0:00:07.7]} 48. Kf2 {[%clk 0:00:06.9]}
48... Qe6 {[%clk 0:00:08.8]} 49. Qxe6 {[%clk 0:00:04.3]} 49... fxe6 {[%clk
0:00:09.3]} 50. Ke3 {[%clk 0:00:06.2]} 50... Kf6 {[%clk 0:00:09.3]} 51. Kd4
{[%clk 0:00:07.1]} 51... g5 {[%clk 0:00:10]} 52. fxg5+ {[%clk 0:00:06.3]} 52...
Kxg5 {[%clk 0:00:11.5]} 53. Ke3 {[%clk 0:00:04.9]} 53... Kg4 {[%clk 0:00:13]}
54. Kf2 {[%clk 0:00:06]} 54... e5 {[%clk 0:00:14.4]} 55. b3 {[%clk 0:00:05.8]}
55... cxb3 {[%clk 0:00:14.5]} 56. axb3 {[%clk 0:00:07.7]} 56... c5 {[%clk
0:00:14.5]} 57. b4 {[%clk 0:00:08]} 57... cxb4 {[%clk 0:00:12.2]} 58. cxb4
{[%clk 0:00:09.9]} 58... e4 {[%clk 0:00:13.2]} 0-1